bitfinex/quotes_SOLUSD_20250928
["timestamp","ask_amount","ask_price","bid_price","bid_amount"]
[1759055959332,0.2,201.31,201.3,179.84018827]
[1759055962435,0.92,201.31,201.3,179.84018827]
[1759055965719,0.92,201.31,201.3,141.66018827]
[1759055965919,0.92,201.31,201.3,179.84018827]
[1759055969666,0.92,201.31,201.3,136.69247839]
[1759055969822,0.92,201.31,201.3,172.88]
[1759055971651,0.92,201.31,201.3,134.7]
[1759055971946,0.92,201.31,201.3,172.88]
[1759055972538,0.92,201.31,201.29,134.7]
[1759055972744,0.2,201.31,201.3,38.18]
[1759055973322,0.92,201.31,201.3,38.18]
[1759055974637,0.92,201.31,201.26,139.6660254]
[1759055974841,0.72,201.3,201.27,38.18]
[1759055975042,0.72,201.29,201.27,38.18]
[1759055975242,0.92,201.31,201.27,38.88]
[1759055975552,0.92,201.31,201.28,38.18]
[1759055976030,0.92,201.31,201.28,53.1258214]
[1759055976524,0.92,201.31,201.29,4.96795667]
[1759055976725,0.92,201.31,201.3,38.18]
[1759055977430,0.92,201.31,201.3,43.14770988]
[1759055978759,0.2,201.31,201.3,43.84770988]
[1759055978961,0.2,201.31,201.3,43.14770988]
[1759055979662,0.2,201.31,201.3,45.14038679]
[1759055980558,0.2,201.31,201.3,179.84038679]
[1759055980743,0.2,201.31,201.3,141.66038679]
[1759055980940,0.2,201.31,201.3,179.84038679]
[1759055982229,0.92,201.31,201.3,179.84038679]
[1759055982424,0.92,201.31,201.3,172.88]
[1759055983560,0.2,201.31,201.3,177.84770988]
[1759055984060,0.2,201.31,201.3,141.66038679]
[1759055984227,0.2,201.31,201.3,179.84038679]
[1759055984934,0.2,201.31,201.3,141.66038679]
[1759055985147,0.2,201.31,201.3,179.84038679]
[1759055989231,0.2,201.31,201.3,180.54038679]
[1759055989633,0.2,201.31,201.3,179.84038679]
[1759055993666,0.2,201.31,201.3,141.66038679]
[1759055993875,0.2,201.31,201.3,179.84038679]
[1759055997862,0.2,201.31,201.3,180.52038679]
[1759055999260,0.2,201.31,201.3,179.84038679]
[1759056000266,0.2,201.31,201.3,194.1159808]
[1759056003273,0.2,201.31,201.3,155.9359808]
[1759056003766,0.2,201.31,201.3,194.1159808]
[1759056004765,0.9,201.31,201.3,141.66038679]
[1759056004977,0.9,201.31,201.3,179.84038679]
[1759056005279,0.2,201.31,201.3,179.84038679]
[1759056006769,0.2,201.31,201.3,141.66038679]
[1759056006962,0.2,201.31,201.3,179.82038679]
[1759056008103,0.9,201.31,201.3,141.66038679]
[1759056008382,0.9,201.31,201.3,136.69267691]
[1759056008550,0.9,201.31,201.3,174.85267691]
[1759056009653,0.9,201.31,201.3,179.82038679]
[1759056009854,0.2,201.31,201.3,141.66038679]
[1759056010068,0.2,201.31,201.3,179.82038679]
[1759056010464,0.2,201.31,201.3,141.66038679]
[1759056010958,0.2,201.31,201.3,179.82038679]
[1759056012671,0.2,201.31,201.3,180.52038679]
[1759056013282,0.2,201.31,201.3,194.1159808]
[1759056018985,0.2,201.31,201.3,193.4159808]
[1759056023191,0.2,201.31,201.3,155.2559808]
[1759056023492,0.2,201.31,201.3,193.4159808]
[1759056025465,0.2,201.31,201.3,155.2559808]
[1759056025667,1e-08,201.31,201.3,220.1159808]
[1759056026382,1e-08,201.31,201.3,181.9559808]
[1759056026583,1e-08,201.31,201.3,220.1159808]
[1759056027183,1e-08,201.31,201.3,219.4159808]
[1759056028671,1e-08,201.31,201.3,181.2559808]
[1759056028876,1e-08,201.31,201.3,219.4159808]
[1759056041392,1e-08,201.31,201.3,220.1159808]
[1759056041691,1e-08,201.31,201.3,219.4159808]
[1759056042307,0.7,201.34,201.31,13.59559401]
[1759056042506,0.7,201.33,201.32,51.75559401]
[1759056042714,0.7,201.33,201.32,186.45559401]
[1759056042888,0.7,201.35,201.32,188.4477747]
[1759056043094,0.7,201.35,201.33,38.16]
[1759056043411,0.2,201.36,201.34,43.12672295]
[1759056043721,0.2,201.36,201.35,38.16]
[1759056044189,0.2,201.36,201.35,40.15208147]
[1759056044509,0.9,201.36,201.35,45.11855775]
[1759056045616,0.9,201.36,201.35,179.81855775]
[1759056049723,0.2,201.36,201.35,193.41415176]
[1759056050225,1e-08,201.36,201.35,194.11415176]
[1759056050418,1e-08,201.36,201.35,155.95415176]
[1759056050914,1e-08,201.36,201.35,194.09415176]
[1759056052822,1e-08,201.36,201.35,193.39415176]
[1759056053615,1e-08,201.36,201.35,194.06415176]
[1759056054123,1e-08,201.36,201.35,193.39415176]
[1759056059135,1e-08,201.36,201.35,194.06415176]
[1759056059303,1e-08,201.36,201.35,193.39415176]
[1759056060012,1e-08,201.36,201.35,194.06415176]
[1759056060602,1e-08,201.36,201.35,155.92415176]
[1759056060797,1e-08,201.36,201.35,194.06415176]
[1759056061927,1e-08,201.36,201.35,193.39415176]
[1759056063231,1e-08,201.36,201.35,194.06415176]
[1759056064009,1e-08,201.36,201.35,193.39415176]
[1759056064618,1e-08,201.37,201.36,134.69999999]
[1759056064815,1e-08,201.37,201.36,172.83999999]
[1759056065014,1e-08,201.37,201.36,134.69999999]
[1759056065216,1e-08,201.37,201.36,174.83158554]
[1759056065907,1e-08,201.37,201.36,179.79781517]
[1759056066923,0.71000001,201.37,201.36,141.65781517]
[1759056067534,0.71000001,201.37,201.36,1.99158555]
[1759056068342,0.71000001,201.37,201.36,40.13158555]
[1759056068916,0.71000001,201.37,201.36,1.99158555]
[1759056069227,0.71000001,201.37,201.36,40.13158555]
[1759056069427,0.71000001,201.37,201.36,1.99158555]
[1759056069910,5.67600016,201.37,201.27,4.96845034]
[1759056070237,0.71,201.36,201.27,4.96845034]
[1759056070424,0.68,201.35,201.28,38.14]
[1759056070624,0.68,201.34,201.29,38.14]
[1759056070825,0.68,201.34,201.25,4.96894409]
[1759056070826,0.68,201.33,201.3,38.14]
[1759056071024,0.68,201.32,201.3,38.14]
[1759056071218,0.68,201.31,201.3,38.14]
[1759056071613,0.68,201.31,201.25,17.39130433]
[1759056071842,0.68,201.3,201.26,38.14]
[1759056072019,4.96602306,201.37,201.27,4.96845034]
[1759056072222,0.68,201.36,201.28,38.14]
[1759056072422,0.68,201.36,201.29,38.14]
[1759056072739,0.68,201.35,201.3,38.14]
[1759056072934,0.68,201.34,201.29,14.94731073]
[1759056073146,0.68,201.33,201.29,38.14]
[1759056073438,0.68,201.32,201.3,14.94731073]
[1759056073639,0.68,201.31,201.3,14.94731073]
[1759056074446,0.68,201.31,201.3,53.08731073]
[1759056074843,1e-08,201.37,201.3,53.75731073]
[1759056075020,0.68,201.36,201.3,53.08731073]
[1759056075216,0.68,201.36,201.31,17.3861209]
[1759056075421,0.68,201.35,201.32,38.14]
[1759056075722,0.68,201.34,201.32,38.14]
[1759056075923,1e-08,201.37,201.32,38.14]
[1759056076132,0.68,201.36,201.33,4.96696965]
[1759056076318,0.68,201.35,201.34,38.14]
[1759056076759,0.68,201.35,201.34,53.08358795]
[1759056077953,0.68000001,201.37,201.34,15.61358795]
[1759056078244,0.68000001,201.37,201.36,4.96622963]
[1759056079616,0.68000001,201.37,201.36,19.90907325]
[1759056082444,1e-08,201.37,201.36,19.90907325]
[1759056082752,1e-08,201.37,201.36,58.73907325]
[1759056084421,1e-08,201.37,201.36,72.33466726]
[1759056084619,1e-08,201.37,201.36,14.94284362]
[1759056084948,0.67000001,201.37,201.36,58.04907325]
[1759056085149,0.67000001,201.37,201.36,53.08284362]
[1759056085942,0.67000001,201.37,201.36,14.94284362]
[1759056086130,1e-08,201.37,201.36,58.04907325]
[1759056087544,0.67000001,201.37,201.36,58.04907325]
[1759056088048,0.67000001,201.37,201.36,19.90907325]
[1759056088262,0.67000001,201.37,201.36,58.04907325]
[1759056090146,0.67000001,201.37,201.36,53.08284362]
[1759056091426,0.67000001,201.37,201.36,58.04907325]
[1759056091633,1e-08,201.37,201.36,19.90907325]
[1759056091830,1e-08,201.37,201.36,58.04907325]
[1759056092032,0.67000001,201.37,201.36,14.94284362]
[1759056092254,0.67000001,201.37,201.36,38.14]
[1759056093158,0.67000001,201.37,201.35,53.08358795]
[1759056093365,0.67,201.36,201.35,38.14]
[1759056093535,0.67,201.36,201.35,43.305038]
[1759056094172,0.67,201.36,201.35,5.165038]
[1759056094356,0.67,201.36,201.32,38.14]
[1759056094655,0.67,201.35,201.32,38.14]
[1759056094865,0.67,201.34,201.32,38.14]
[1759056095073,0.67,201.33,201.32,38.14]
[1759056095741,0.67000001,201.37,201.32,38.83]
[1759056095943,0.67,201.36,201.32,38.14]
[1759056096149,0.67,201.36,201.33,4.03150303]
[1759056096362,0.67,201.36,201.34,38.14]
[1759056096772,0.67,201.36,201.34,53.08433236]
[1759056097269,1e-08,201.37,201.34,53.08433236]
[1759056097586,1e-08,201.37,201.35,0.69]
[1759056097788,1e-08,201.37,201.36,38.16]
[1759056098148,1e-08,201.37,201.36,38.89]
[1759056098378,1e-08,201.37,201.36,43.85622963]
[1759056100744,1e-08,201.37,201.36,5.65622963]
[1759056100967,1e-08,201.37,201.36,43.83622963]
[1759056103776,1e-08,201.37,201.36,45.82811271]
[1759056105500,1e-08,201.37,201.36,180.52811271]
[1759056112892,1e-08,201.37,201.36,180.48811271]
[1759056119521,1e-08,201.37,201.36,142.34811271]
[1759056119817,1e-08,201.37,201.36,180.46811271]
[1759056121519,1e-08,201.37,201.36,179.77811271]
[1759056121810,0.68000001,201.37,201.36,141.65811271]
[1759056122111,0.68000001,201.37,201.36,139.66622963]
[1759056122647,0.68000001,201.37,201.36,177.78622963]
[1759056123002,0.68000001,201.37,201.36,139.66622963]
[1759056123205,0.68000001,201.37,201.36,177.78622963]
[1759056123508,0.68000001,201.37,201.36,43.08622963]
[1759056124714,1e-08,201.37,201.36,43.74622963]
[1759056125120,1e-08,201.37,201.36,47.08839547]
[1759056126415,1e-08,201.37,201.36,195.38398948]
[1759056127117,1e-08,201.37,201.36,195.40398948]
[1759056128712,1e-08,201.37,201.36,157.26398948]
[1759056129021,1e-08,201.37,201.36,195.40398948]
[1759056130400,1e-08,201.37,201.36,194.74398948]
[1759056132001,1e-08,201.37,201.36,195.42398948]
[1759056134025,1e-08,201.37,201.36,195.40398948]
[1759056134996,1e-08,201.37,201.36,157.28398948]
[1759056135202,1e-08,201.37,201.36,195.40398948]
[1759056135904,0.2,201.41,201.4,13.59559401]
[1759056136222,0.71,201.53,201.44,39.59559401]
[1759056136406,0.71,201.53,201.46,13.59559401]
[1759056136611,0.71,201.53,201.45,38.16]
[1759056136612,0.2,201.57,201.48,13.59559401]
[1759056136797,0.71,201.55,201.5,4.96277915]
[1759056137004,0.71,201.55,201.51,38.22]
[1759056137232,0.71,201.54,201.51,38.22]
[1759056137825,0.71,201.54,201.51,40.21039634]
[1759056138225,0.2,201.57,201.51,1.99039634]
[1759056138526,0.91,201.52,201.51,40.21039634]
[1759056138899,0.91,201.52,201.51,45.17292921]
[1759056139515,0.91,201.52,201.51,40.21039634]
[1759056140221,0.91,201.52,201.51,40.23039634]
[1759056142821,0.91,201.52,201.51,1.99039634]
[1759056143024,0.91,201.52,201.51,40.21039634]
[1759056145530,0.91,201.52,201.51,38.2]
[1759056146315,0.91,201.52,201.48,1.99099077]
[1759056146525,0.68,201.51,201.49,38.22]
[1759056146825,0.68,201.5,201.48,1.99099077]
[1759056147021,0.68,201.49,201.42,139.66470545]
[1759056147221,0.68,201.48,201.44,14.93466086]
[1759056147416,0.68,201.47,201.4,134.69999999]
[1759056147635,0.68,201.46,201.39,0.7]
[1759056147803,0.68,201.46,201.37,134.69999999]
[1759056147804,0.68,201.46,201.4,53.17763537]
[1759056148126,0.68,201.45,201.4,38.24]
[1759056148321,26.0,201.49,201.4,38.24]
[1759056148322,0.68,201.44,201.4,38.24]
[1759056148529,0.68,201.43,201.41,38.24]
[1759056148727,0.68,201.42,201.41,38.24]
[1759056149332,0.68,201.42,201.4,4.96516217]
[1759056149534,4.96336617,201.48,201.41,38.24]
[1759056149712,26.0,201.46,201.35,26.0]
[1759056149906,26.0,201.46,201.36,43.20619973]
[1759056150107,0.68,201.45,201.36,58.14606677]
[1759056150307,0.68,201.44,201.36,58.84606677]
[1759056150514,0.68,201.43,201.36,58.84606677]
[1759056150718,0.68,201.42,201.36,14.93986704]
[1759056150924,0.68,201.41,201.37,38.24]
[1759056151131,0.68,201.4,201.37,38.24]
[1759056151436,0.68,201.39,201.37,38.24]
[1759056153241,0.68,201.38,201.35,14.93986704]
[1759056153414,0.68,201.37,201.36,38.24]
[1759056153617,0.68,201.37,201.35,38.24]
[1759056153814,0.68,201.36,201.35,38.24]
[1759056154034,0.68,201.36,201.33,14.93986704]
[1759056154204,56.97051705,201.44,201.34,38.24]
[1759056154205,0.68,201.35,201.34,38.24]
[1759056155734,0.68,201.37,201.34,38.24]
[1759056155947,0.68,201.36,201.34,38.24]
[1759056159932,0.68,201.38,201.34,38.24]
[1759056160113,0.68,201.37,201.34,38.24]
[1759056160638,0.68,201.39,201.35,0.7]
[1759056160933,26.0,201.41,201.35,0.7]
[1759056161131,0.68,201.38,201.34,43.20665298]
[1759056161328,0.68,201.37,201.34,43.20665298]
[1759056161637,26.0,201.4,201.34,43.90665298]
[1759056161935,0.68,201.37,201.34,38.94]
[1759056163137,0.68,201.37,201.34,38.24]
[1759056163743,0.68,201.37,201.34,38.94]
[1759056164942,0.68,201.38,201.34,38.94]
[1759056165843,26.0,201.4,201.33,4.96688785]
[1759056166043,0.68,201.37,201.34,38.22]
[1759056166219,0.68,201.37,201.34,38.92]
[1759056166729,0.68,201.39,201.34,38.92]
[1759056166927,0.68,201.38,201.34,38.92]
[1759056167250,0.68,201.38,201.34,43.88661502]
[1759056168049,0.68,201.38,201.34,38.92]
[1759056168652,0.68,201.38,201.34,43.88669533]
[1759056168948,0.68,201.38,201.34,43.18669533]
[1759056169147,0.68,201.38,201.34,43.88669533]
[1759056170549,26.00574466,201.45,201.34,43.88669533]
[1759056170550,26.0,201.41,201.35,0.69]
[1759056170717,0.65,201.4,201.36,38.2]
[1759056171044,26.0,201.41,201.36,38.89]
[1759056171254,26.65,201.4,201.36,38.89]
[1759056171713,0.65,201.39,201.36,38.89]
[1759056171914,0.65,201.39,201.36,38.2]
[1759056174543,26.0,201.4,201.36,38.2]
[1759056174718,0.65,201.39,201.36,38.2]
[1759056175247,0.65,201.38,201.34,0.69]
[1759056175421,0.65,201.38,201.35,38.87]
[1759056177444,26.0,201.4,201.35,38.87]
[1759056177634,0.65,201.39,201.35,38.87]
[1759056180352,0.65,201.42,201.36,0.69]
[1759056180719,26.65,201.42,201.36,0.69]
[1759056182052,0.65,201.42,201.36,38.85]
[1759056182235,0.65,201.41,201.36,38.85]
[1759056182430,0.65,201.4,201.36,38.85]
[1759056182864,30.9647895,201.42,201.31,147.1186562]
[1759056183036,0.65,201.39,201.31,0.69]
[1759056183223,0.65,201.39,201.3,38.18]
[1759056183550,39.59559401,201.41,201.28,0.69]
[1759056183551,26.65,201.38,201.28,0.69]
[1759056183730,26.0,201.36,201.28,38.87]
[1759056183930,0.65,201.35,201.28,38.87]
[1759056184234,0.65,201.34,201.28,38.87]
[1759056184431,0.65,201.33,201.28,38.87]
[1759056184633,0.65,201.33,201.29,0.69]
[1759056185555,4.96658193,201.35,201.26,4.96869111]
[1759056185556,0.65,201.32,201.27,38.18]
[1759056185756,0.65,201.31,201.27,38.18]
[1759056185929,0.65,201.33,201.28,0.69]
[1759056186247,0.65,201.32,201.28,0.69]
[1759056187141,26.65,201.32,201.24,4.96907041]
[1759056187342,0.65,201.31,201.25,0.69]
[1759056201753,0.65,201.31,201.18,14.95029028]
[1759056201754,26.0,201.23,201.14,0.1]
[1759056201963,26.0,201.21,201.14,0.1]
[1759056202471,0.68,201.2,201.14,0.1]
[1759056202856,0.68,201.19,201.14,0.78]
[1759056203263,0.68,201.18,201.14,0.78]
[1759056203460,0.68,201.17,201.14,0.78]
[1759056203763,0.68,201.17,201.14,0.1]
[1759056204564,26.68,201.17,201.14,0.1]
[1759056205747,0.68,201.17,201.14,0.1]
[1759056208046,0.68,201.18,201.14,0.1]
[1759056208565,0.68,201.17,201.14,0.1]
[1759056210470,0.68,201.19,201.14,0.1]
[1759056210671,0.68,201.18,201.14,0.1]
[1759056211374,0.68,201.17,201.14,0.1]
[1759056212449,26.0,201.2,201.14,0.1]
[1759056212776,26.68,201.18,201.14,0.1]
[1759056213357,38.26,201.23,201.14,5.07163968]
[1759056213663,26.68,201.2,201.15,0.78]
[1759056220676,0.68,201.19,201.15,0.78]
[1759056220975,0.68,201.18,201.15,0.78]
[1759056221151,0.68,201.19,201.15,0.78]
[1759056221356,0.68,201.18,201.15,0.78]
[1759056223264,0.68,201.21,201.16,0.68]
[1759056223469,26.68,201.21,201.15,5.07141276]
[1759056223769,26.68,201.21,201.16,0.68]
[1759056223770,26.0,201.21,201.16,0.68]
[1759056223963,0.68,201.2,201.16,0.68]
[1759056224565,0.68,201.19,201.16,0.68]
[1759056224873,26.68,201.21,201.17,0.68]
[1759056225071,0.68,201.2,201.17,0.68]
[1759056225879,0.68,201.19,201.15,0.78]
[1759056226067,0.68,201.19,201.16,0.68]
[1759056234075,26.0,201.23,201.17,0.66]
[1759056234280,0.72,201.22,201.17,0.66]
[1759056239517,26.72,201.22,201.17,0.66]
[1759056239684,0.72,201.23,201.18,0.66]
[1759056240077,0.72,201.22,201.19,0.66]
[1759056241283,0.72,201.21,201.17,0.66]
[1759056241591,0.72,201.2,201.17,0.66]
[1759056244605,0.72,201.21,201.18,0.66]
[1759056248895,0.72,201.21,201.15,0.1]
[1759056249096,5.69006692,201.21,201.15,0.1]
[1759056249479,0.72,201.21,201.15,0.1]
[1759056253714,68.35702397,201.26,201.16,0.66]
[1759056253917,0.7,201.22,201.16,0.66]
[1759056254116,3.35245217,201.21,201.16,0.66]
[1759056254413,0.7,201.21,201.16,0.66]
[1759056255110,0.7,201.2,201.17,0.66]
[1759056258095,0.7,201.22,201.18,0.66]
[1759056258313,0.7,201.21,201.18,0.66]
[1759056258610,0.7,201.21,201.17,4.97089691]
[1759056258912,0.7,201.2,201.16,0.66]
[1759056259115,0.7,201.2,201.17,0.66]
[1759056260990,26.0,201.22,201.17,0.66]
[1759056261285,0.7,201.2,201.17,0.66]
[1759056262096,26.7,201.22,201.18,0.69]
[1759056262714,26.7,201.22,201.17,5.66086735]
[1759056262914,26.7,201.22,201.17,43.86086735]
[1759056262915,0.7,201.21,201.17,43.86086735]
[1759056263429,0.7,201.21,201.18,0.69]
[1759056266920,0.7,201.21,201.17,38.89]
[1759056267137,0.7,201.2,201.17,0.69]
[1759056267313,0.7,201.2,201.17,38.87]
[1759056267830,0.7,201.24,201.18,0.69]
[1759056268044,0.7,201.25,201.19,4.97042596]
[1759056268408,0.7,201.25,201.2,0.69]
[1759056268605,0.7,201.25,201.21,38.87]
[1759056268817,0.7,201.25,201.22,0.69]
[1759056269009,4.96776177,201.3,201.21,38.18]
[1759056269010,9.12453727,201.31,201.23,0.69]
[1759056269231,0.7,201.29,201.23,0.69]
[1759056269540,29.35482574,201.28,201.23,0.69]
[1759056269717,3.35482574,201.27,201.21,38.18]
[1759056269916,26.7,201.28,201.24,0.69]
[1759056270129,4.05395134,201.27,201.24,0.69]
[1759056270329,0.7,201.27,201.24,0.69]
[1759056271515,26.0,201.28,201.21,38.18]
[1759056271516,0.7,201.3,201.23,4.96943159]
[1759056271834,3.35364447,201.29,201.25,0.69]
[1759056272012,0.7,201.29,201.25,0.69]
[1759056272212,0.7,201.28,201.25,0.69]
[1759056273036,4.05236274,201.29,201.25,0.69]
[1759056273337,0.7,201.29,201.25,0.69]
[1759056274333,0.7,201.29,201.24,4.96900169]
[1759056274537,0.7,201.28,201.24,0.69]
[1759056277418,0.7,201.28,201.25,0.69]
[1759056277609,0.7,201.28,201.24,0.69]
[1759056278747,0.7,201.27,201.24,0.69]
[1759056279312,0.7,201.27,201.22,4.96968492]
[1759056279313,0.7,201.26,201.21,134.7]
[1759056279514,0.7,201.25,201.2,43.8401539]
[1759056279716,0.7,201.24,201.2,38.87]
[1759056279924,0.7,201.23,201.2,38.87]
[1759056283930,0.7,201.23,201.2,0.69]
[1759056284135,4.96845915,201.27,201.2,38.87]
[1759056284340,0.7,201.24,201.18,14.9540164]
[1759056284542,0.7,201.23,201.18,38.18]
[1759056284716,0.7,201.22,201.19,0.69]
[1759056285842,0.7,201.22,201.18,38.18]
[1759056285843,0.7,201.24,201.2,0.69]
[1759056286019,0.7,201.23,201.2,0.69]
[1759056286413,0.7,201.23,201.18,38.18]
[1759056286620,0.7,201.23,201.19,0.69]
[1759056286827,0.7,201.23,201.2,0.69]
[1759056289038,0.7,201.23,201.18,38.18]
[1759056289246,0.7,201.23,201.2,0.69]
[1759056292747,0.66,201.24,201.2,0.69]
[1759056292945,0.66,201.23,201.2,0.69]
[1759056300640,0.66,201.25,201.2,0.69]
[1759056300830,4.00989938,201.25,201.2,0.69]
[1759056301035,0.66,201.25,201.2,0.69]
[1759056301335,3.34989938,201.25,201.2,0.69]
[1759056301535,0.66,201.24,201.2,0.69]
[1759056301761,0.66,201.24,201.21,0.72]
[1759056304033,0.66,201.25,201.22,0.72]
[1759056304234,0.66,201.24,201.21,0.72]
[1759056304960,3.35173366,201.28,201.21,5.68988389]
[1759056305141,0.66,201.31,201.22,0.72]
[1759056305342,26.66,201.31,201.22,0.72]
[1759056305542,0.66,201.31,201.22,0.72]
[1759056306064,4.01043143,201.31,201.23,14.95103536]
[1759056306269,0.66,201.3,201.24,0.72]
[1759056309963,0.66,201.3,201.24,5.68914926]
[1759056310147,0.66,201.3,201.25,0.72]
[1759056310347,0.66,201.3,201.26,0.7]
[1759056311772,0.72,201.29,201.26,0.7]
[1759056312170,0.72,201.3,201.27,0.7]
[1759056312563,3.35026594,201.31,201.25,4.96889541]
[1759056312779,0.72,201.3,201.26,0.7]
[1759056312954,0.72,201.29,201.26,0.7]
[1759056313661,3.35026594,201.33,201.25,4.96889541]
[1759056313662,29.35026594,201.32,201.27,0.7]
[1759056313971,3.34958925,201.34,201.27,0.7]
[1759056314172,4.06958925,201.33,201.27,0.7]
[1759056314384,0.72,201.33,201.27,38.86]
[1759056314571,0.72,201.35,201.28,0.7]
[1759056314776,26.0,201.34,201.28,0.7]
[1759056314959,26.72,201.34,201.28,5.66795961]
[1759056315292,0.72,201.34,201.29,0.7]
[1759056317064,0.72,201.34,201.29,5.66773582]
[1759056317267,0.72,201.34,201.3,0.7]
[1759056317471,0.72,201.34,201.29,4.96773582]
[1759056317661,0.72,201.34,201.31,0.7]
[1759056318282,0.72,201.33,201.29,5.66773582]
[1759056318650,0.72,201.33,201.3,0.7]
[1759056319665,0.72,201.33,201.3,5.66769899]
[1759056319973,0.72,201.35,201.3,4.96769899]
[1759056320182,0.72,201.34,201.31,0.7]
[1759056321479,26.0,201.37,201.31,4.9674592]
[1759056321686,26.69,201.37,201.32,0.67]
[1759056321886,0.69,201.36,201.32,0.67]
[1759056322090,0.69,201.35,201.32,0.67]
[1759056322471,26.0,201.37,201.32,0.67]
[1759056322685,0.69,201.37,201.32,0.67]
[1759056322886,26.69,201.38,201.32,0.67]
[1759056323560,26.69,201.38,201.33,4.96696965]
[1759056323866,0.69,201.37,201.34,0.67]
[1759056324265,26.0,201.38,201.34,0.67]
[1759056324266,38.16,201.42,201.34,0.67]
[1759056324481,16.5670461,201.46,201.35,0.67]
[1759056324482,0.69,201.4,201.35,0.67]
[1759056325588,0.69,201.4,201.36,4.96622963]
[1759056325786,0.69,201.42,201.37,0.67]
[1759056325958,3.33808349,201.45,201.36,4.96622963]
[1759056326157,26.0,201.43,201.37,0.67]
[1759056326384,0.69,201.42,201.37,0.67]
[1759056326575,26.0,201.43,201.36,4.96622963]
[1759056326884,0.69,201.41,201.38,0.67]
[1759056327268,0.69,201.41,201.37,5.6359277]
[1759056327468,0.69,201.41,201.37,0.67]
[1759056327683,0.69,201.4,201.35,14.94209936]
[1759056327983,0.69,201.4,201.36,0.67]
[1759056329886,0.69,201.4,201.36,4.96620168]
[1759056330089,26.0,201.43,201.37,0.67]
[1759056330293,0.69,201.42,201.37,0.67]
[1759056330484,0.69,201.41,201.38,0.67]
[1759056331568,0.69,201.42,201.38,0.67]
[1759056332191,0.69,201.42,201.39,0.67]
[1759056334863,0.69,201.42,201.39,0.52009828]
[1759056336094,0.69,201.42,201.38,4.96564208]
[1759056336973,26.0,201.46,201.39,0.67]
[1759056337182,0.69,201.45,201.39,0.67]
[1759056337374,26.69,201.45,201.39,0.67]
[1759056338495,26.0,201.44,201.39,0.67]
[1759056338897,0.69,201.43,201.39,0.67]
[1759056339077,0.69,201.43,201.4,0.67]
[1759056339273,26.69,201.45,201.4,0.67]
[1759056339490,0.69,201.45,201.4,0.67]
[1759056339797,0.69,201.44,201.41,0.67]
[1759056340321,0.69,201.44,201.4,0.67]
[1759056340481,26.0,201.46,201.4,0.67]
[1759056340674,0.69,201.43,201.39,14.93837918]
[1759056340875,0.69,201.42,201.37,0.67]
[1759056341091,0.69,201.42,201.38,0.67]
[1759056343295,0.69,201.41,201.38,0.67]
[1759056344195,0.69,201.41,201.37,14.94061107]